fUST/lending_fUST_20240807
["ID","MTS","AMOUNT","RATE_DAILY","PERIOD"]
[334382017,1723013488443,1763.49757797,0.0001212,2]
[334382018,1723013488596,42341.71391136,0.0001212,2]
[334382019,1723013488826,245.15593956,0.0001212,2]
[334382020,1723013490145,183.12142007,0.0001212,2]
[334382021,1723013490259,600.70272046,0.0001212,2]
[334382022,1723013490368,209.20156569,0.0001212,2]
[334382023,1723013490687,568.56884199,0.0001212,2]
[334382024,1723013490721,21912.53747682,0.0001212,2]
[334382025,1723013490772,9642.56191171,0.0001212,2]
[334382026,1723013491017,522.19479555,0.0001212,2]
[334382027,1723013491434,189.50767068,0.0001212,2]
[334382028,1723013491555,7775.14481469,0.0001212,2]
[334382029,1723013492628,727.4693855,0.0001212,2]
[334382030,1723013492702,307.30419818,0.0001212,2]
[334382031,1723013493113,154.88378153,0.0001212,2]
[334382032,1723013493282,154.76012181,0.0001212,2]
[334382033,1723013493325,808.0041696,0.0001212,2]
[334382034,1723013493592,154.88378153,0.0001212,2]
[334382035,1723013493650,311.01915351,0.0001212,2]
[334382036,1723013494182,35022.02035591,0.0001212,2]
[334382037,1723013494398,942.68890731,0.0001212,2]
[334382038,1723013496139,154.76012181,0.0001212,2]
[334382039,1723013496225,274.07708089,0.0001212,2]
[334382041,1723013496860,240.82219567,0.0001212,2]
[334382042,1723013497657,201.4596201,0.0001212,2]
[334382043,1723013498321,155.15927222,0.0001212,2]
[334382044,1723013500659,158.48348286,0.0001212,2]
[334382045,1723013501069,2139.16821494,0.0001212,2]
[334382046,1723013501199,154.72922386,0.0001212,2]
[334382047,1723013501785,301.01889679,0.0001212,2]
[334382048,1723013502887,154.76012181,0.0001212,2]
[334382049,1723013504780,320.68158213,0.0001212,2]
[334382050,1723013504918,154.76012181,0.0001212,2]
[334382051,1723013506047,1669.01055043,0.0001212,2]
[334382052,1723013506733,753.90347342,0.0001212,2]
[334382053,1723013510228,154.77557542,0.0001212,2]
[334382055,1723013553335,361.83787098,0.0001,2]
[334382056,1723013573997,154.79101976,9.999e-05,2]
[334382057,1723013577031,154.90871936,9.999e-05,2]
[334382060,1723013617354,154.74467746,9.999e-05,2]
[334382086,1723014200694,598.3209804,0.00013699,2]
[334382276,1723014410176,-168.176834,0.00014247,2]
[334382277,1723014410204,-22.85653468,0.00014247,2]
[334382283,1723014572269,24900.0,0.00013568,2]
[334382342,1723014631982,-250.0,0.00014052,2]
[334382343,1723014631992,-250.0,0.0001409,2]
[334382344,1723014632001,-250.0,0.00014129,2]
[334382345,1723014632010,-250.0,0.00014167,2]
[334382346,1723014632020,-250.0,0.00014206,2]
[334382348,1723014632031,-250.0,0.00014244,2]
[334382349,1723014632043,-168.85410732,0.00014247,2]
[334382351,1723014632053,-250.0,0.00014283,2]
[334382353,1723014632062,-250.0,0.00014321,2]
[334382354,1723014632071,-250.0,0.0001436,2]
[334382355,1723014632081,-106.15238121,0.00014399,2]
[334382356,1723014632106,-143.84761879,0.00014399,2]
[334382358,1723014632115,-250.0,0.00014437,2]
[334382359,1723014632124,-250.0,0.00014476,2]
[334382360,1723014632133,-250.0,0.00014514,2]
[334382361,1723014632142,-250.0,0.00014553,2]
[334382362,1723014632152,-250.0,0.00014591,2]
[334382363,1723014632161,-250.0,0.0001463,2]
[334382364,1723014632170,-250.0,0.00014668,2]
[334382365,1723014632180,-500.0,0.0001469,2]
[334382366,1723014632189,-297.36619146,0.0001469,2]
[334382367,1723014632198,-1944.46447538,0.00014691,2]
[334382368,1723014632208,-9652.45576997,0.00014691,2]
[334382369,1723014632217,-18671.71714585,0.00014691,2]
[334382370,1723014632227,-250.0,0.00014707,2]
[334382371,1723014632242,-250.0,0.00014745,2]
[334382372,1723014632251,-250.0,0.00014784,2]
[334382373,1723014632260,-492.45155524,0.00015,2]
[334382374,1723014632270,-912.4763458,0.00015,2]
[334382375,1723014632279,-951.80625463,0.00015,2]
[334382376,1723014632288,-206.89437613,0.000164,2]
[334382377,1723014632297,-3565.75106406,0.00016446,2]
[334382378,1723014632306,-277.26634811,0.000165,2]
[334382379,1723014632317,-2457.59525449,0.00017019,2]
[334382380,1723014632476,-150.0,0.00018225,2]
[334382381,1723014632537,-4579.12725229,0.0001827,2]
[334382382,1723014632547,-515.03523361,0.00018889,2]
[334382383,1723014632556,-154.72922386,0.0001895,2]
[334382384,1723014632565,-154.72922386,0.00018969,2]
[334382385,1723014632574,-2890.0,0.0001897,2]
[334382386,1723014632585,-155.13131422,0.00018989,2]
[334382387,1723014632594,-250.0,0.00019041,2]
[334382388,1723014632604,-184.332407,0.00019178,2]
[334382389,1723014632614,-168.773925,0.00019178,2]
[334382390,1723014632623,-173.74734,0.00019178,2]
[334382391,1723014632634,-150.112233,0.000199,2]
[334382392,1723014632644,-39190.0904868,0.0001999,2]
[334382393,1723014632654,-154.8064672,0.0002,2]
[334382394,1723014632664,-10488.56500567,0.0002,2]
[334382395,1723014632673,-309.41228112,0.0002,2]
[334382396,1723014632683,-294.09032939,0.0002,2]
[334382397,1723014632693,-4182.56716442,0.0002,2]
[334382398,1723014632704,-427.12199975,0.0002,2]
[334382399,1723014632715,-40288.846061,0.0002,2]
[334382400,1723014632725,-156.35315554,0.0002,2]
[334382401,1723014632736,-1625.81763535,0.0002,2]
[334382402,1723014632747,-154.72922386,0.0002,2]
[334382403,1723014632757,-1061.01164336,0.0002,2]
[334382404,1723014632767,-191.710642,0.00020707,2]
[334382405,1723014632779,-296.95255386,0.00021,2]
[334382406,1723014632790,-3010.0,0.00021918,2]
[334382407,1723014632802,-403.15974784,0.0002217,2]
[334382408,1723014632812,-380.0,0.00024658,2]
[334382409,1723014632822,-39190.0904868,0.00024965,3]
[334382410,1723014632832,-1363.69574407,0.00025,2]
[334382411,1723014632842,-154.72922386,0.00025,2]
[334382412,1723014632855,-154.72922386,0.00025,2]
[334382413,1723014632865,-150.80375075,0.00025979,2]
[334382414,1723014632874,-150.112233,0.000264,8]
[334382415,1723014632885,-9421.35258831,0.000265,2]
[334382416,1723014632896,-150.0,0.00026979,2]
[334382417,1723014632906,-191.710642,0.00027167,2]
[334382418,1723014632917,-305.60627343,0.0002739,2]
[334382419,1723014632929,-150.0,0.00027979,2]
[334382420,1723014632938,-1411.0,0.00028029,2]
[334382421,1723014632948,-150.0,0.00028979,2]
[334382422,1723014632958,-150.0,0.00029892,2]
[334382423,1723014632968,-507.0,0.00029892,2]
[334382424,1723014632977,-150.0,0.00029979,2]
[334382425,1723014632990,-154.71377951,0.0003,4]
[334382426,1723014632999,-151.0,0.0003,120]
[334382427,1723014633009,-480.0,0.0003,2]
[334382428,1723014633018,-212.0,0.0003,2]
[334382429,1723014633028,-502.32687861,0.0003,2]
[334382430,1723014633037,-198.0,0.0003,2]
[334382431,1723014633047,-229.0,0.0003,2]
[334382432,1723014633056,-480.0,0.00030411,2]
[334382433,1723014633065,-229.0,0.00030411,2]
[334382434,1723014633074,-151.0,0.00030427,6]
[334382435,1723014633084,-151.0,0.00030427,6]
[334382436,1723014633094,-480.0,0.00030685,2]
[334382437,1723014633104,-480.0,0.00030959,2]
[334382438,1723014633114,-150.0,0.00030979,2]
[334382439,1723014633124,-1000.0,0.00031,31]
[334382440,1723014633134,-150.112233,0.00031,6]
[334382441,1723014633143,-201.553246,0.00031,120]
[334382442,1723014633152,-1411.0,0.00031029,2]
[334382443,1723014633161,-480.0,0.00031233,2]
[334382444,1723014633171,-150.0,0.00031353,4]
[334382445,1723014633180,-150.112233,0.000314,8]
[334382446,1723014633190,-608.735686,0.00031507,120]
[334382447,1723014633200,-600.0,0.00031561,2]
[334382448,1723014633209,-480.0,0.00031644,2]
[334382449,1723014633219,-229.0,0.00031644,2]
[334382450,1723014633228,-39190.0904868,0.00031697,4]
[334382451,1723014633242,-38937.42109062,0.00031707,2]
[334382452,1723014633255,-150.112233,0.000318,9]
[334382453,1723014633265,-22713.49637827,0.000318,7]
[334382454,1723014633275,-261.3825,0.00031876,30]
[334382455,1723014633286,-786.29536205,0.0003189,2]
[334382456,1723014633296,-150.0,0.00031979,2]
[334382457,1723014633306,-152.00524,0.0003198,7]
[334382458,1723014633316,-151.0,0.0003198,7]
[334382459,1723014633328,-451.84605212,0.00032,30]
[334382460,1723014633339,-1000.0,0.00032,32]
[334382461,1723014633350,-3526.68063581,0.00032,30]
[334382462,1723014633360,-150.112233,0.00032,10]
[334382463,1723014633370,-151.0,0.00032013,7]
[334382464,1723014633379,-151.0,0.00032013,7]
[334382465,1723014633389,-150.112233,0.000321,9]
[334382466,1723014633400,-150.112233,0.000321,9]
[334382467,1723014633410,-150.112233,0.000323,8]
[334382468,1723014633419,-1002.478211,0.000323,10]
[334382469,1723014633430,-150.112233,0.000324,8]
[334382470,1723014633440,-156.0,0.0003248,27]
[334382471,1723014633451,-151.0,0.0003248,7]
[334382472,1723014633460,-151.0,0.0003249,7]
[334382473,1723014633469,-151.0,0.0003249,7]
[334382474,1723014633479,-151.0,0.0003249,7]
[334382475,1723014633496,-151.0,0.0003249,7]
[334382476,1723014633506,-151.0,0.0003249,7]
[334382477,1723014633516,-173.778356,0.0003249,7]
[334382478,1723014633525,-173.778356,0.0003249,7]
[334382479,1723014633534,-202.88973,0.0003249,7]
[334382480,1723014633544,-261.800625,0.0003249,7]
[334382481,1723014633553,-202.88973,0.0003249,7]
[334382482,1723014633563,-214.518084,0.0003249,7]
[334382483,1723014633572,-214.518084,0.0003249,7]
[334382484,1723014633582,-151.0,0.0003249,7]
[334382485,1723014633591,-151.0,0.0003249,7]
[334382486,1723014633601,-387.792375,0.0003249,7]
[334382487,1723014633610,-387.792375,0.0003249,7]
[334382488,1723014633620,-479.911242,0.0003249,7]
[334382489,1723014633630,-479.911242,0.0003249,7]
[334382490,1723014633639,-39190.0904868,0.0003249,4]
[334382491,1723014633649,-151.0,0.0003249,7]
[334382492,1723014633658,-26630.50406582,0.000325,2]
[334382572,1723014638432,-500.0,0.00019989,2]
[334382573,1723014638441,-500.0,0.00019989,2]
[334382574,1723014638450,-500.0,0.00019989,2]
[334382575,1723014638459,-500.0,0.00019989,2]
[334382576,1723014638469,-487.33857761,0.00019989,2]
[334382586,1723014640420,-12.66142239,0.00019989,2]
[334382588,1723014640429,-500.0,0.00019989,2]
[334382589,1723014640439,-617.8814731,0.00019989,2]
[334382590,1723014640448,-500.0,0.00019989,2]
[334382591,1723014640458,-500.0,0.00019989,2]
[334382592,1723014640467,-12841.21468096,0.00031697,21]
[334382593,1723014640476,-16464.46055778,0.000325,2]
[334382594,1723014640486,-150.112233,0.000325,7]
[334382595,1723014640497,-2000.0,0.000325,2]
[334382596,1723014640506,-348.526936,0.000325,7]
[334382597,1723014640516,-485.430689,0.000325,7]
[334382598,1723014640526,-348.526936,0.000325,7]
[334382599,1723014640536,-485.430689,0.000325,7]
[334382600,1723014640545,-151.0,0.000325,7]
[334382601,1723014640554,-151.0,0.000325,7]
[334382602,1723014640563,-419.842571,0.000325,7]
[334382603,1723014640572,-419.842571,0.000325,7]
[334382604,1723014640582,-13854.41159447,0.0003259,4]
[334382651,1723014643256,-21.22592985,0.0002146,2]
[334382698,1723015600721,2857.7560699,0.00016,3]
[334382934,1723015838597,-167.101666,0.00014247,2]
[334382935,1723015838607,-162.954045,0.00014247,2]
[334382936,1723015838617,-4800.44186743,0.00018447,2]
[334382937,1723015838626,-250.0,0.00018645,2]
[334382938,1723015838635,-250.0,0.00018696,2]
[334382939,1723015838647,-250.0,0.00018747,2]
[334382940,1723015838661,-250.0,0.00018798,2]
[334382941,1723015838671,-250.0,0.00018849,2]
[334382942,1723015838680,-250.0,0.00018901,2]
[334382943,1723015838692,-250.0,0.00018952,2]
[334382944,1723015838703,-250.0,0.00019003,2]
[334382945,1723015838713,-250.0,0.00019041,2]
[334382946,1723015838722,-250.0,0.00019054,2]
[334382947,1723015838732,-250.0,0.00019105,2]
[334382948,1723015838742,-250.0,0.00019156,2]
[334382949,1723015838752,-168.773925,0.00019178,2]
[334382950,1723015838761,-250.0,0.00019207,2]
[334382951,1723015838773,-250.0,0.00019258,2]
[334382952,1723015838783,-250.0,0.0001931,2]
[334382953,1723015838792,-250.0,0.00019361,2]
[334382954,1723015838801,-2162.60520141,0.00019394,2]
[334382955,1723015838810,-250.0,0.00019412,2]
[334382956,1723015838820,-7001.77703298,0.00019451,2]
[334382957,1723015838830,-2139.16821494,0.00019451,2]
[334382958,1723015838839,-1794.59755427,0.00019451,2]
[334382959,1723015838848,-154.883763,0.00019451,2]
[334382960,1723015838858,-250.0,0.00019463,2]
[334382961,1723015838867,-157.85964427,0.00019477,2]
[334382962,1723015838877,-250.0,0.00019514,2]
[334382963,1723015838887,-183.12142007,0.00019547,2]
[334382964,1723015838897,-250.0,0.00019565,2]
[334382965,1723015838907,-250.0,0.00019616,2]
[334382966,1723015838916,-742.69230297,0.00019899,2]
[334382967,1723015838925,-12422.25065637,0.00019949,2]
[334383255,1723015843436,-8578.29348723,0.00019949,2]
[334383284,1723015847353,-2449.46951216,0.00019949,2]
[334383285,1723015847364,-1449.98634424,0.00019949,2]
[334383286,1723015847375,-154.76012181,0.0002,2]
[334383287,1723015847385,-426.85877147,0.0002,2]
[334383288,1723015847394,-184.332407,0.00020277,2]
[334383289,1723015847404,-162.954045,0.00020707,2]
[334383290,1723015847414,-2572.51056014,0.0002136,2]
[334383314,1723016954683,150.5,0.00021579,120]
[334383315,1723016955157,150.5,0.00021569,120]
[334383316,1723016955649,218.75,0.00021559,120]
[334383364,1723017032451,-4515.15311675,0.00014147,2]
[334383366,1723017032461,-162.954045,0.00014247,2]
[334383368,1723017032470,-166.099935,0.00014247,2]
[334383370,1723017032480,-788.3357277,0.00015436,2]
[334383372,1723017032489,-423.535423,0.00015525,2]
[334383374,1723017032499,-3000.0,0.00015546,2]
[334383376,1723017032508,-250.0,0.00016361,2]
[334383378,1723017032518,-250.0,0.00016406,2]
[334383380,1723017032527,-250.0,0.00016451,2]
[334383382,1723017032538,-250.0,0.00016496,2]
[334383384,1723017032547,-1276.07140908,0.0001653,2]
[334383386,1723017032557,-250.0,0.00016541,2]
[334383388,1723017032566,-250.0,0.00016586,2]
[334383390,1723017032575,-300.0,0.00016627,2]
[334383392,1723017032584,-251.62794152,0.00016628,2]
[334383394,1723017032593,-270.26495792,0.00016628,2]
[334383396,1723017032603,-500.0,0.00016628,2]
[334383398,1723017032612,-157.2737572,0.00016628,2]
[334383400,1723017032622,-500.0,0.00016628,2]
[334383402,1723017032631,-500.0,0.00016628,2]
[334383405,1723017032641,-500.0,0.00016628,2]
[334383408,1723017032650,-579.5224342,0.00016628,2]
[334383412,1723017032659,-500.0,0.00016628,2]
[334383413,1723017032669,-500.0,0.00016628,2]
[334383416,1723017032679,-262.96385452,0.00016628,2]
[334383418,1723017032688,-327.69819811,0.00016628,2]
[334383422,1723017032716,-172.30180189,0.00016628,2]
[334383424,1723017032725,-458.26555575,0.00016628,2]
[334383426,1723017032734,-500.0,0.00016628,2]
[334383428,1723017032746,-500.0,0.00016628,2]
[334383430,1723017032757,-500.0,0.00016628,2]
[334383432,1723017032768,-384.15625524,0.00016628,2]
[334383434,1723017032778,-24900.0,0.00016629,2]
[334383437,1723017032788,-250.0,0.00016631,2]
[334383439,1723017032798,-250.0,0.00016675,2]
[334383441,1723017032810,-250.0,0.0001672,2]
[334383443,1723017032820,-250.0,0.00016765,2]
[334383445,1723017032830,-250.0,0.0001681,2]
[334383447,1723017032839,-250.0,0.00016855,2]
[334383449,1723017032850,-250.0,0.000169,2]
[334383451,1723017032860,-250.0,0.00016945,2]
[334383453,1723017032870,-250.0,0.0001699,2]
[334383455,1723017032879,-250.0,0.00017034,2]
[334383457,1723017032888,-250.0,0.00017079,2]
[334383459,1723017032897,-250.0,0.00017124,2]
[334383461,1723017032907,-250.0,0.00017169,2]
[334383463,1723017032917,-250.0,0.00017214,2]
[334383465,1723017032927,-154.71377951,0.00018,2]
[334383467,1723017032939,-420.0,0.0001829,2]
[334383468,1723017032949,-367.13754263,0.00018979,2]
[334383470,1723017032960,-2162.60520141,0.00019155,2]
[334383472,1723017032970,-1794.59755427,0.00019155,2]
[334383475,1723017032988,-3050.79735622,0.00019155,2]
[334383476,1723017033000,-1992.27585132,0.00019167,2]
[334383477,1723017033012,-154.72922386,0.00019177,2]
[334383478,1723017033023,-156.61103376,0.00019177,2]
[334383479,1723017033036,-173.74734,0.00019178,2]
[334383480,1723017033045,-184.332407,0.00019178,2]
[334383481,1723017033054,-196.74507213,0.00019256,2]
[334383482,1723017033064,-154.79103211,0.00019256,2]
[334383483,1723017033075,-1500.0,0.00019256,2]
[334383484,1723017033086,-1276.07140902,0.00019399,2]
[334383485,1723017033096,-224.61143175,0.00019477,2]
[334383486,1723017033109,-287.79610663,0.00019477,2]
[334383487,1723017033119,-154.83742071,0.00019477,2]
[334383488,1723017033128,-532.20149829,0.00019477,2]
[334383489,1723017033145,-533.92328189,0.00019477,2]
[334383490,1723017033156,-154.97231942,0.00019477,2]
[334383491,1723017033167,-500.0,0.00019535,2]
[334383492,1723017033177,-30659.3518097,0.00019536,2]
[334383493,1723017033187,-154.72922386,0.00019547,2]
[334383494,1723017033197,-244.84557874,0.00019547,2]
[334383495,1723017033207,-274.44831486,0.00019999,2]
[334383496,1723017033217,-849.47006365,0.00019999,2]
[334383497,1723017033226,-913.25466825,0.0002,2]
[334383498,1723017033238,-427.12199975,0.0002,2]
[334383499,1723017033248,-205.59251073,0.00020003,2]
[334383500,1723017033258,-1043.82932589,0.00020004,2]
[334383501,1723017033267,-4579.1272523,0.00020103,2]
[334383502,1723017033277,-587.0,0.00020119,2]
[334383503,1723017033289,-596.85892516,0.0002018,2]
[334383504,1723017033299,-201.4920041,0.0002028,2]
[334383505,1723017033309,-310.37061448,0.0002028,2]
[334383506,1723017033319,-452.55467294,0.0002028,2]
[334383507,1723017033330,-4579.1272523,0.00020414,2]
[334383508,1723017033341,-4579.1272523,0.00020628,2]
[334383509,1723017033351,-157.85964427,0.00020721,2]
[334383510,1723017033360,-4579.1272523,0.00020829,2]
[334383511,1723017033370,-21904.53468543,0.00020998,2]
[334383512,1723017033380,-301.01889679,0.00020999,2]
[334383513,1723017033391,-151.0,0.00020999,2]
[334383514,1723017033400,-154.77557542,0.00020999,2]
[334383515,1723017033412,-151.0,0.00020999,2]
[334383516,1723017033422,-151.0,0.00020999,2]
[334383517,1723017033433,-522.32545193,0.00021011,2]
[334383518,1723017033444,-25512.66929606,0.00021038,3]
[334383555,1723017038578,-932.26890731,0.00019256,2]
[334383556,1723017038587,-512.76192182,0.00019535,2]
[334383557,1723017038596,-154.79103211,0.00019547,2]
[334383558,1723017038607,-5146.68251364,0.00021038,3]
[334383559,1723017038616,-151.0,0.00021038,2]
[334383560,1723017038626,-313.674243,0.00021038,2]
[334383561,1723017038635,-313.674243,0.00021038,2]
[334383562,1723017038645,-228.998388,0.00021038,2]
[334383563,1723017038654,-228.998388,0.00021038,2]
[334383564,1723017038664,-156.40052,0.00021038,2]
[334383565,1723017038674,-156.40052,0.00021038,2]
[334383566,1723017038684,-1249.638318,0.00021038,2]
[334383567,1723017038693,-1249.638318,0.00021038,2]
[334383568,1723017038703,-142.45533421,0.00021038,2]
[334383569,1723017038724,-10.57882779,0.00021038,2]
[334383570,1723017038734,-4203.518596,0.00021038,2]
[334383571,1723017038744,-4203.518596,0.00021038,2]
[334383572,1723017038753,-1415.669646,0.00021038,2]
[334383573,1723017038763,-1415.669646,0.00021038,2]
[334383574,1723017038773,-207.328412,0.00021038,2]
[334383575,1723017038783,-207.328412,0.00021038,2]
[334383576,1723017038795,-183.107848,0.00021038,2]
[334383577,1723017038805,-183.107848,0.00021038,2]
[334383578,1723017038816,-151.0,0.00021038,2]
[334383579,1723017038825,-151.0,0.00021038,2]
[334383580,1723017038834,-770.82007,0.00021038,2]
[334383581,1723017038844,-770.82007,0.00021038,2]
[334383582,1723017038854,-4203.518596,0.00021048,2]
[334383583,1723017038864,-4203.518596,0.00021048,2]
[334383584,1723017038873,-1415.669646,0.00021048,2]
[334383585,1723017038884,-1415.669646,0.00021048,2]
[334383586,1723017038893,-207.328412,0.00021048,2]
[334383587,1723017038905,-207.328412,0.00021048,2]
[334383588,1723017038915,-183.107848,0.00021048,2]
[334383589,1723017038926,-183.107848,0.00021048,2]
[334383590,1723017038936,-151.0,0.00021048,2]
[334383591,1723017038946,-151.0,0.00021048,2]
[334383592,1723017038956,-770.82007,0.00021048,2]
[334383593,1723017038965,-770.82007,0.00021048,2]
[334383594,1723017038975,-152.61704648,0.000213,2]
[334383595,1723017038984,-9227.14710966,0.0002135,3]
[334383596,1723017038997,-21432.20470004,0.0002135,3]
[334383597,1723017039007,-151.0,0.0002135,2]
[334383598,1723017039017,-151.0,0.0002135,2]
[334383599,1723017039030,-10488.56500567,0.0002136,2]
[334383600,1723017039039,-3842.42948235,0.0002136,2]
[334383601,1723017039049,-912.4763458,0.0002136,2]
[334383602,1723017039059,-158.48348286,0.0002136,2]
[334383603,1723017039069,-162.954045,0.00021467,2]
[334383604,1723017039078,-151.0,0.00021531,2]
[334383605,1723017039088,-313.674243,0.00021531,2]
[334383606,1723017039097,-313.674243,0.00021531,2]
[334383607,1723017039110,-228.998388,0.00021531,2]
[334383608,1723017039120,-228.998388,0.00021531,2]
[334383609,1723017039131,-156.40052,0.00021531,2]
[334383610,1723017039140,-156.40052,0.00021531,2]
[334383611,1723017039149,-161.904374,0.00021542,2]
[334383612,1723017039158,-161.904374,0.00021542,2]
[334383613,1723017039168,-1249.638318,0.00021542,2]
[334383614,1723017039177,-1249.638318,0.00021542,2]
[334383615,1723017039186,-242.945912,0.00021542,2]
[334383616,1723017039196,-242.945912,0.00021542,2]
[334383617,1723017039206,-202.56,0.00021559,7]
[334383618,1723017039217,-150.5,0.00021569,7]
[334383619,1723017039226,-150.5,0.00021579,7]
[334383620,1723017039236,-193.066276,0.00021589,2]
[334383621,1723017039246,-349.013137,0.00021589,2]
[334383622,1723017039257,-349.013137,0.00021589,2]
[334383623,1723017039266,-151.0,0.00021589,2]
[334383624,1723017039275,-313.674243,0.00021589,2]
[334383625,1723017039284,-313.674243,0.00021589,2]
[334383626,1723017039294,-228.998388,0.00021589,2]
[334383627,1723017039304,-228.998388,0.00021589,2]
[334383628,1723017039313,-156.40052,0.00021589,2]
[334383629,1723017039323,-156.40052,0.00021589,2]
[334383630,1723017039332,-161.904374,0.00021589,2]
[334383631,1723017039342,-161.904374,0.00021589,2]
[334383632,1723017039351,-1249.638318,0.00021589,2]
[334383633,1723017039360,-1249.638318,0.00021589,2]
[334383634,1723017039370,-242.945912,0.00021589,2]
[334383635,1723017039380,-242.945912,0.00021589,2]
[334383636,1723017039391,-4203.518596,0.00021589,2]
[334383637,1723017039402,-4203.518596,0.00021589,2]
[334383638,1723017039412,-1415.669646,0.00021589,2]
[334383639,1723017039423,-1415.669646,0.00021589,2]
[334383640,1723017039435,-207.328412,0.00021589,2]
[334383641,1723017039444,-207.328412,0.00021589,2]
[334383642,1723017039456,-183.107848,0.00021589,2]
[334383643,1723017039467,-183.107848,0.00021589,2]
[334383644,1723017039478,-151.0,0.00021589,2]
[334383645,1723017039488,-151.0,0.00021589,2]
[334383646,1723017039497,-770.82007,0.00021589,2]
[334383647,1723017039506,-770.82007,0.00021589,2]
[334383648,1723017039516,-150.112233,0.000216,2]
[334383649,1723017039525,-1382.92970052,0.00021602,2]
[334383650,1723017039535,-193.066276,0.00021609,2]
[334383651,1723017039544,-349.013137,0.00021609,2]
[334383652,1723017039555,-349.013137,0.00021609,2]
[334383653,1723017039564,-206.905422,0.00021609,2]
[334383654,1723017039573,-313.674243,0.00021609,2]
[334383655,1723017039582,-313.674243,0.00021609,2]
[334383656,1723017039591,-228.998388,0.00021609,2]
[334383657,1723017039601,-156.40052,0.00021609,2]
[334383658,1723017039610,-228.998388,0.00021609,2]
[334383659,1723017039619,-156.40052,0.00021609,2]
[334383660,1723017039629,-193.066276,0.00021631,2]
[334383661,1723017039638,-349.013137,0.00021631,2]
[334383662,1723017039647,-349.013137,0.00021631,2]
[334383663,1723017039658,-316.334504,0.00021632,2]
[334383664,1723017039668,-316.334504,0.00021632,2]
[334383665,1723017039680,-299.835624,0.00021632,2]
[334383666,1723017039692,-154.72922386,0.00021805,2]
[334383667,1723017039704,-316.334504,0.00021906,2]
[334383668,1723017039715,-316.334504,0.00021906,2]
[334383669,1723017039725,-154.83742071,0.00021916,2]
[334383670,1723017039736,-494.27988772,0.00021916,2]
[334383671,1723017039747,-331.0199903,0.00021918,30]
[334383672,1723017039756,-823.0,0.00022131,2]
[334383673,1723017039767,-1276.07140902,0.00022268,2]
[334383674,1723017039776,-596.85892515,0.00023258,2]
[334383675,1723017039786,-423.535423,0.00023288,2]
[334383676,1723017039795,-154.72922386,0.00024,2]
[334383677,1723017039804,-133.64336614,0.00024344,2]
[334383876,1723017043338,-1018.35663386,0.00024344,2]
[334383877,1723017043348,-380.0,0.00024658,2]
[334383878,1723017043358,-151.0,0.00024658,7]
[334383879,1723017043367,-151.0,0.00024658,7]
[334383880,1723017043376,-500.0,0.00025,2]
[334383881,1723017043385,-154.82195475,0.00025,2]
[334383882,1723017043395,-1276.07140902,0.00025137,2]
[334383883,1723017043404,-402.49527553,0.00025795,2]
[334383884,1723017043414,-881.47696693,0.00025823,2]
[334383885,1723017043423,-151.0,0.00025881,7]
[334383886,1723017043432,-151.0,0.00025881,7]
[334383887,1723017043442,-316.334504,0.00025881,7]
[334383888,1723017043452,-316.334504,0.00025881,7]
[334383889,1723017043462,-1249.638318,0.00025881,7]
[334383890,1723017043472,-1249.638318,0.00025881,7]
[334383892,1723017043482,-4203.518596,0.00025881,7]
[334383894,1723017043493,-4203.518596,0.00025881,7]
[334383896,1723017043502,-1415.669646,0.00025881,7]
[334383897,1723017043512,-1415.669646,0.00025881,7]
[334383898,1723017043522,-207.328412,0.00025881,7]